{"text_format":"1","workbook":"xlsx","n_sheets":6,"sheets":["BIG SIMULATOR","Capa","Simular IRS 2022","Informações 2022","Disclaimer","Ajuda"],"not_rendered":{"charts":0,"images":6,"macros":1,"external_links":0,"defined_names":20,"comments":0,"pivot_tables":0},"unopened":[],"bounds":{"document_bytes":16777216,"sheet_cells":100000,"rows_first":2000,"rows_last":500,"rows_between":2000,"halvings":0,"cell_chars":16384,"cell_head_chars":4096},"cells_cut":0,"cells_raw":0,"read":"whole","date_system":"1900"}

{"sheet":"BIG SIMULATOR","index":0,"n_rows":189,"n_cols":19,"rows_kept":189,"cut":false,"hidden":true,"merged":[[232,5,232,6],[240,5,240,6],[251,10,251,11],[264,10,264,11],[279,10,279,11],[294,10,294,11],[168,7,168,8],[171,5,171,6],[172,5,172,6],[188,30,188,31],[218,30,218,31],[169,7,169,8],[171,7,173,8],[174,7,174,8],[175,7,175,8],[177,5,177,6],[177,7,179,8],[178,5,178,6],[180,7,180,8],[181,7,181,8],[184,5,184,6],[184,7,186,8],[185,5,185,6],[187,7,187,8],[188,7,188,8],[231,5,231,6],[122,2,122,5],[121,10,121,11],[124,2,127,2],[123,14,125,14],[130,2,133,2],[136,12,138,12],[139,30,139,31],[152,2,157,2],[159,2,164,2],[165,5,165,6],[165,7,167,8],[166,5,166,6],[143,5,143,6],[145,5,145,6],[118,21,120,21],[93,10,93,13],[93,16,93,17],[93,20,95,20],[96,10,96,11],[102,2,102,4],[107,2,110,2],[112,2,115,2],[52,16,52,17],[72,16,72,17],[85,5,85,6],[85,10,85,11],[86,5,86,6],[86,10,86,11],[90,16,90,17],[104,2,104,5],[109,12,111,12],[104,25,104,26],[94,16,94,17],[102,15,102,16],[98,10,98,11],[70,36,70,37],[72,30,72,31],[74,30,74,31],[76,36,76,37],[93,21,95,21],[76,38,77,38],[81,36,81,37],[81,38,83,38],[82,36,82,37],[51,30,51,31],[61,30,61,31],[65,36,65,37],[65,38,67,38],[66,36,66,37],[69,36,69,37],[69,38,71,38],[24,30,24,31],[25,30,25,31],[36,30,36,31],[37,30,37,31],[50,30,50,31],[10,30,10,31],[11,30,11,31],[43,21,45,21],[44,16,44,17],[1,4,1,5],[7,18,9,18],[7,19,9,19],[7,20,9,20],[7,21,9,21],[10,0,10,8],[12,8,14,8],[7,16,8,17],[24,16,24,17],[40,16,40,17],[43,16,43,17],[43,20,45,20]]}
[]
[null,null,null,null,null,null,null,null,null,null,null,null,null,"Estado Civil"]
[null,null,null,null,null,null,null,null,null,null,null,null,null,"Solteiro / Viúvo / Divorciado",0]
[null,null,null,null,null,null,null,null,null,null,null,null,null,"Casado / Unido de facto",1]
[]
[]
[null,null,null,null,null,null,null,null,null,null,null,null,null,"Número de Filhos"]
[null,null,null,null,null,null,null,null,null,null,null,null,null,0]
[null,null,null,null,null,null,null,null,null,null,null,null,null,1]
[null,null,null,null,null,null,null,null,null,null,null,null,null,2]
[null,null,null,null,null,null,null,null,null,null,null,null,null,3]
[null,null,null,null,null,null,null,null,null,null,null,null,null,4]
[null,"DESCRIÇÃO",null,null,null,null,2021,2022,null,null,null,null,null,5]
[]
[null,null,null,null,null,null,null,null,null,null,null,null,null,"Número de Ascendentes"]
[null,"RENDIMENTO BRUTO",null,null,null,null,null,null,null,null,null,null,null,0]
[null,"TRABALHO DEPENDENTE",null,null,null,null,{"$f":"H118","v":0},{"$f":"I118","v":0},null,null,null,null,null,1]
[null,"PENSÕES DE VELHICE",null,null,null,null,{"$f":"H136","v":0},{"$f":"I136","v":0},null,null,null,null,null,2]
[null,null,null,null,null,null,null,null,null,null,null,null,null,3]
[null,"TOTAL ",null,null,null,null,{"$f":"G17+G18","v":0},0,null,null,null,null,null,4]
[]
[null,"DEDUÇÕES ESPECÍFICAS"]
[null,"TRABALHO DEPENDENTE",null,null,null,null,{"$f":"H120","v":0},{"$f":"I120","v":0},null,null,null,null,null,"Tributação conjunta",1]
[null,null,null,null,null,null,null,null,null,null,null,null,null,"Tributação separada",2]
[]
[null,"PENSÕES",null,null,null,null,{"$f":"H138","v":0},{"$f":"I138","v":0}]
[null,"TOTAL",null,null,null,null,{"$f":"G23+G26","v":0},0]
[]
[null,"RENDIMENTO COLETÁVEL",null,null,null,null,{"$f":"G20-G27","v":0},0]
[]
[]
[]
[]
[]
[null,"CÁLCULO DO IMPOSTO:"]
[null,"    COEFICIENTE CONJUGAL",null,null,null,null,{"$f":"IF((IF(C87=1,G29,IF(AND(C97=2,C87=2),G29,G29/2)))<0,0,(IF(C87=1,G29,IF(AND(C97=2,C87=2),G29,G29/2))))","v":0},{"$f":"IF((IF(C87=1,H29,IF(AND(C97=2,C87=2),H29,H29/2)))<0,0,(IF(C87=1,H29,IF(AND(C97=2,C87=2),H29,H29/2))))","v":0}]
[null,"    TAXA A APLICAR",null,null,null,null,{"$f":"VLOOKUP($G$36,$K$102:$N$108,3,TRUE)","v":0.14499999999999999},{"$f":"VLOOKUP($H$36,$K$127:$N$135,3,TRUE)","v":0.14499999999999999}]
[null,"    APLICAÇÃO DE TAXA PROGRESSIVA",null,null,null,null,{"$f":"IFERROR(ROUND(G37*G36,2),\"\")","v":0},0]
[null,"    PARCELA A ABATER",null,null,null,null,{"$f":"VLOOKUP($G$36,$K$102:$N$108,4,TRUE)","v":0},{"$f":"VLOOKUP($H$36,$K$127:$N$135,4,TRUE)","v":0}]
[null,"TAXA DE SOLIDARIEDADE",null,null,null,null,{"$f":"IF($C$87=1,((VLOOKUP(G36,$P$104:$S$106,3,TRUE)*G36)-VLOOKUP(G36,$P$104:$S$106,4,TRUE)),IF(AND($C$87=2,$C$97=1),((VLOOKUP(G36,$P$104:$S$106,3,TRUE)*G36)-VLOOKUP(G36,$P$104:$S$106,4,TRUE))*2,((VLOOKUP(G36,$P$104:$S$106,3,TRUE)*G36)-VLOOKUP(G36,$P$104:$S$106,4,TRUE))))","v":0},{"$f":"IF($C$87=1,((VLOOKUP(H36,$P$104:$S$106,3,TRUE)*H36)-VLOOKUP(H36,$P$104:$S$106,4,TRUE)),IF(AND($C$87=2,$C$97=1),((VLOOKUP(H36,$P$104:$S$106,3,TRUE)*H36)-VLOOKUP(H36,$P$104:$S$106,4,TRUE))*2,((VLOOKUP(H36,$P$104:$S$106,3,TRUE)*H36)-VLOOKUP(H36,$P$104:$S$106,4,TRUE))))","v":0}]
[]
[null,"     SUB-TOTAL",null,null,null,null,{"$f":"IFERROR(ROUND((G38-G39+G40),2),\"\")","v":0},0]
[]
[null,"COLETA",null,null,null,null,{"$f":"IF($C$87=1,G42,IF(AND($C$87=2,$C$97=1),(G38-G39)*2+G40,G38-G39+G40))","v":0},{"$f":"IF($C$87=1,H42,IF(AND($C$87=2,$C$97=1),(H38-H39)*2+H40,H38-H39+H40))","v":0}]
[]
[null,"DEDUÇÕES À COLECTA"]
[null,"DEDUÇÕES DEPENDENTES E ASCENDENTES",null,null,null,null,{"$f":"G162+G163","v":0},{"$f":"H162+H163","v":0}]
[null,"DESPESAS GERAIS",null,null,null,null,{"$f":"IF(C87=1,IF(C91<>0,IF(0.45*H91>335,335,0.45*H91),IF(0.35*H91>250,250,0.35*H91)),IF(C97=1,IF(0.35*H91>500,500,0.35*H91),IF(0.35*H91>250,250,0.35*H91)))","v":0},{"$f":"IF(C87=1,IF(C91<>0,IF(0.45*H91>335,335,0.45*H91),IF(0.35*H91>250,250,0.35*H91)),IF(C97=1,IF(0.35*H91>500,500,0.35*H91),IF(0.35*H91>250,250,0.35*H91)))","v":0}]
[]
[null,"DESPESAS DE SAÚDE",null,null,null,null,{"$f":"IF(C87=1,IF(H86*0.15>1000,1000,0.15*H86),IF(C97=2,IF(H86*0.075>500,500,0.075*H86),IF(H86*0.15>1000,1000,0.15*H86)))","v":0},{"$f":"IF(C87=1,IF(H86*0.15>1000,1000,0.15*H86),IF(C97=2,IF(H86*0.075>500,500,0.075*H86),IF(H86*0.15>1000,1000,0.15*H86)))","v":0}]
[null,"DESPESAS DE EDUCAÇÃO",null,null,null,null,{"$f":"IF($C$87=1,IF($H$87*0.3>800,800,0.3*$H$87),IF($C$97=2,IF($H$87*0.15>400,400,0.15*$H$87),IF($H$87*0.3>800,800,0.3*$H$87)))","v":0},{"$f":"IF($C$87=1,IF($H$87*0.3>800,800,0.3*$H$87),IF($C$97=2,IF($H$87*0.15>400,400,0.15*$H$87),IF($H$87*0.3>800,800,0.3*$H$87)))","v":0}]
[null,"ENCARGOS COM IMÓVEIS - JUROS",null,null,null,null,{"$f":"IF($C$96<=2011,IF($C$87=1,IF(G36>30000,IF($H$88*0.15>296,296,$H$88*0.15),IF(0.15*$H$88>VLOOKUP(G36,$F$175:$I$176,3,TRUE),VLOOKUP(G36,$F$175:$I$176,3,TRUE),0.15*$H$88)),IF($C$97=2,IF(G36>30000,IF($H$88*0.075>148,148,$H$88*0.075),IF(0.075*$H$88>0.5*VLOOKUP(G36,$F$175:$I$176,3,TRUE),0.5*VLOOKUP(G36,$F$175:$I$176,3,TRUE),0.075*$H$88)),IF($C$97=1,IF(G36>30000,IF($H$88*0.15>296,296,$H$88*0.15),IF(0.15*$H$88>VLOOKUP(G36,$F$175:$I$176,3,TRUE),VLOOKUP(G36,$F$175:$I$176,3,TRUE),0.15*$H$88)),0))))","v":0},{"$f":"IF($C$96<=2011,IF($C$87=1,IF(H36>30000,IF($H$88*0.15>296,296,$H$88*0.15),IF(0.15*$H$88>VLOOKUP(H36,$F$188:$I$189,3,TRUE),VLOOKUP(H36,$F$188:$I$189,3,TRUE),0.15*$H$88)),IF($C$97=2,IF(H36>30000,IF($H$88*0.075>148,148,$H$88*0.075),IF(0.075*$H$88>0.5*VLOOKUP(H36,$F$188:$I$189,3,TRUE),0.5*VLOOKUP(H36,$F$188:$I$189,3,TRUE),0.075*$H$88)),IF($C$97=1,IF(H36>30000,IF($H$88*0.15>296,296,$H$88*0.15),IF(0.15*$H$88>VLOOKUP(H36,$F$188:$I$189,3,TRUE),VLOOKUP(H36,$F$188:$I$189,3,TRUE),0.15*$H$88)),0))))","v":0}]
[null,"RENDAS",null,null,null,null,{"$f":"IF($C$87=1,IF(G36>30000,IF($H$89*0.15>502,502,$H$89*0.15),IF(0.15*$H$89>VLOOKUP(G36,$F$169:$I$170,3,TRUE),VLOOKUP(G36,$F$169:$I$170,3,TRUE),0.15*$H$89)),IF($C$97=2,IF(G36>30000,IF($H$89*0.075>251,251,$H$89*0.075),IF(0.075*$H$89>0.5*VLOOKUP(G36,$F$169:$I$170,3,TRUE),0.5*VLOOKUP(G36,$F$169:$I$170,3,TRUE),0.075*$H$89)),IF(G36>30000,IF($H$89*0.15>502,502,$H$89*0.15),IF(0.15*$H$89>VLOOKUP(G36,$F$169:$I$170,3,TRUE),VLOOKUP(G36,$F$169:$I$170,3,TRUE),0.15*$H$89))))","v":0},{"$f":"IF($C$87=1,IF(H36>30000,IF($H$89*0.15>502,502,$H$89*0.15),IF(0.15*$H$89>VLOOKUP(H36,$F$181:$I$182,3,TRUE),VLOOKUP(H36,$F$181:$I$182,3,TRUE),0.15*$H$89)),IF($C$97=2,IF(H36>30000,IF($H$89*0.075>251,251,$H$89*0.075),IF(0.075*$H$89>0.5*VLOOKUP(H36,$F$181:$I$182,3,TRUE),0.5*VLOOKUP(H36,$F$181:$I$182,3,TRUE),0.075*$H$89)),IF(H36>30000,IF($H$89*0.15>502,502,$H$89*0.15),IF(0.15*$H$89>VLOOKUP(H36,$F$181:$I$182,3,TRUE),VLOOKUP(H36,$F$181:$I$182,3,TRUE),0.15*$H$89))))","v":0}]
[null,"PENSÃO DE ALIMENTOS",null,null,null,null,{"$f":"0.2*H90","v":0},{"$f":"0.2*H90","v":0}]
[null,"TOTAL (SAUDE; EDUCAÇÃO; IMOVEIS; RENDAS; PENSÕES DE ALIMENTOS)",null,null,null,null,{"$f":"SUM(G50:G54)","v":0},0]
[null,"CONTRIBUIÇÕES PARA PPR",null,null,null,null,{"$f":"IF(G18=0,IF('Simular IRS 2022'!F20<35,IF(0.2*'BIG SIMULATOR'!H92>400,400,0.2*'BIG SIMULATOR'!H92),IF(AND('Simular IRS 2022'!F20>=35,'Simular IRS 2022'!F20<=50),IF(0.2*'BIG SIMULATOR'!H92>350,350,0.2*'BIG SIMULATOR'!H92),IF(0.2*'BIG SIMULATOR'!H92>300,300,0.2*'BIG SIMULATOR'!H92)))+IF('Simular IRS 2022'!F22<35,IF(0.2*'BIG SIMULATOR'!H93>400,400,0.2*'BIG SIMULATOR'!H93),IF(AND('Simular IRS 2022'!F22>=35,'Simular IRS 2022'!F22<=50),IF(0.2*'BIG SIMULATOR'!H93>350,350,0.2*'BIG SIMULATOR'!H93),IF(0.2*'BIG SIMULATOR'!H93>300,300,0.2*'BIG SIMULATOR'!H93))),0)","v":0},{"$f":"IF(H18=0,IF('Simular IRS 2022'!F20<35,IF(0.2*'BIG SIMULATOR'!H92>400,400,0.2*'BIG SIMULATOR'!H92),IF(AND('Simular IRS 2022'!F20>=35,'Simular IRS 2022'!F20<=50),IF(0.2*'BIG SIMULATOR'!H92>350,350,0.2*'BIG SIMULATOR'!H92),IF(0.2*'BIG SIMULATOR'!H92>300,300,0.2*'BIG SIMULATOR'!H92)))+IF('Simular IRS 2022'!F22<35,IF(0.2*'BIG SIMULATOR'!H93>400,400,0.2*'BIG SIMULATOR'!H93),IF(AND('Simular IRS 2022'!F22>=35,'Simular IRS 2022'!F22<=50),IF(0.2*'BIG SIMULATOR'!H93>350,350,0.2*'BIG SIMULATOR'!H93),IF(0.2*'BIG SIMULATOR'!H93>300,300,0.2*'BIG SIMULATOR'!H93))),0)","v":0}]
[null,"ENCARGOS COM DONATIVOS",null,null,null,null,{"$f":"IF(0.25*H94*1.3>0.15*G44,0.15*G44,0.25*H94*1.3)","v":0},{"$f":"IF(0.25*H94*1.3>0.15*H44,0.15*H44,0.25*H94*1.3)","v":0}]
[null,"TOTAL (EBF)",null,null,null,null,{"$f":"SUM(G56:G57)","v":0},0]
[]
[null,"LIMITE OU SOMA",null,null,null,null,{"$f":"IF($C$87=1,MIN(G55+G58,VLOOKUP(G36,$K$113:$M$115,3,TRUE)),IF($C$97=2,MIN(G55+G58,0.5*VLOOKUP(G36,$K$113:$M$115,3,TRUE)),MIN(G55+G58,VLOOKUP(G36,$K$113:$M$115,3,TRUE))))","v":0},{"$f":"IF($C$87=1,MIN(H55+H58,VLOOKUP(H36,$K$140:$M$142,3,TRUE)),IF($C$97=2,MIN(H55+H58,0.5*VLOOKUP(H36,$K$140:$M$142,3,TRUE)),MIN(H55+H58,VLOOKUP(H36,$K$140:$M$142,3,TRUE))))","v":0}]
[null,null,null,null,null,null,null,null,null,null,"ME na Trib. Conjunta"]
[]
[null,"TOTAL DAS DEDUÇÕES",null,null,null,null,{"$f":"MIN(G47+G60+G48,G44)","v":0},0]
[null,null,null,null,null,null,null,null,null,null,2021,null,2022]
[null,"IMPOSTO APURADO",null,null,null,null,{"$f":"IF(G44-G63<0,0,G44-G63)","v":0},0,null,null,"ME Garantido SPA?","Diferença","ME Garantido SPA?","Diferença"]
[null,null,null,null,null,null,null,null,null,null,{"$f":"IF((M86+M88)-G65/(G20-G27)*(M86+M88-H111-H128)>G73,\"Sim\",\"Não\")","v":{"$error":"#DIV/0!"}},{"$f":"IF(K66=\"Sim\",IF(M86+M88>G73,(M86+M88-G65/(G20-G27)*(M86+M88-H111-H128)-G73),G65/(G20-G27)*(M86+M88-H111-H128)),IF(M86+M88>G73,(M86+M88-G65/(G20-G27)*(M86+M88-H111-H128)-G73)*-1,G65/(G20-G27)*(M86+M88-H111-H128))*-1)","v":{"$error":"#DIV/0!"}},{"$f":"IF((M86+M88)-H65/(G20-G27)*(M86+M88-I111-I128)>H73,\"Sim\",\"Não\")","v":{"$error":"#DIV/0!"}},{"$f":"IF(M66=\"Sim\",IF(M86+M88>H73,(M86+M88-H65/(H20-H27)*(M86+M88-I111-I128)-H73),H65/(H20-H27)*(M86+M88-I111-I128)),IF(M86+M88>H73,(M86+M88-H65/(H20-H27)*(M86+M88-I111-I128)-H73)*-1,H65/(H20-H27)*(M86+M88-I111-I128))*-1)","v":{"$error":"#DIV/0!"}}]
[null,null,null,null,null,null,null,null,null,null,"ME Garantido SPB?",null,"ME Garantido SPB?"]
[null,null,null,null,null,null,null,null,null,null,{"$f":"IF((N86+N88)-G65/(G20-G27)*(N86+N88-H116-H134)>G73,\"Sim\",\"Não\")","v":{"$error":"#DIV/0!"}},{"$f":"IF(K68=\"Sim\",IF(N86+N88>G73,(N86+N88-G65/(G20-G27)*(N86+N88-H116-H134)-G73),G65/(G20-G27)*(N86+N88-H116-H134)),IF(N86+N88>G73,(N86+N88-G65/(G20-G27)*(N86+N88-H116-H134)-G73)*-1,G65/(G20-G27)*(N86+N88-H116-H134))*-1)","v":{"$error":"#DIV/0!"}},{"$f":"IF((N86+N88)-H65/(G20-G27)*(N86+N88-I116-I134)>H73,\"Sim\",\"Não\")","v":{"$error":"#DIV/0!"}},{"$f":"IF(M68=\"Sim\",IF(N86+N88>H73,(N86+N88-H65/(H20-H27)*(N86+N88-I116-I134)-H73),H65/(H20-H27)*(N86+N88-I116-I134)),IF(N86+N88>H73,(N86+N88-H65/(H20-H27)*(N86+N88-I116-I134)-H73)*-1,H65/(H20-H27)*(N86+N88-I116-I134))*-1)","v":{"$error":"#DIV/0!"}}]
[]
[null,null,null,null,null,null,null,null,null,null,"Soma",{"$f":"IF(L66+L68<0,(L66+L68)*-1,0)","v":{"$error":"#DIV/0!"}},null,{"$f":"IF(N66+N68<0,(N66+N68)*-1,0)","v":{"$error":"#DIV/0!"}}]
[]
[null,"       RENDIMENTO LÍQUIDO",null,null,null,null,{"$f":"G20-G65","v":0},0,null,null,"ME Não Casado",{"$f":"IF(G74=\"Não\",0,IF(G20>G73,G73-G72,G65))","v":0},{"$f":"IF(H74=\"Não\",0,IF(H20>H73,H73-H72,H65))","v":0}]
[null,"       MÍNIMO DE EXISTÊNCIA",null,null,null,null,{"$f":"MAX(1.5*14*K82+200,K79)","v":9415.01},{"$f":"MAX(1.5*14*L82,L79)","v":9870},null,null,"ME Casado Tsep",{"$f":"IF(G74=\"Não\",0,IF(G20>G73,G73-G72,G65))","v":0},{"$f":"IF(H74=\"Não\",0,IF(H20>H73,H73-H72,H65))","v":0}]
[null,"       APLICAÇÃO DE MÍNIMO DE EXISTÊNCIA?",null,null,null,null,{"$f":"IFERROR(IF(AND($C$87=2,$C$97=2,G72<G73),\"Sim\",IF(AND($C$87=1,G72<G73),\"Sim\",IF(AND($C$87=2,$C$97=1,L70<>0),\"Sim\",\"Não\"))),\"N/A\")","v":"Sim"},{"$f":"IFERROR(IF(AND($C$87=2,$C$97=2,H72<H73),\"Sim\",IF(AND($C$87=1,H72<H73),\"Sim\",IF(AND($C$87=2,$C$97=1,N70<>0),\"Sim\",\"Não\"))),\"N/A\")","v":"Sim"}]
[null,"       A DECRESCER À COLETA",null,null,null,null,{"$f":"+IF($C$87=1,$L$72,IF(AND($C$87=2,$C$97=2),$L$73,L70))","v":0},{"$f":"+IF($C$87=1,$M$72,IF(AND($C$87=2,$C$97=2),$M$73,N70))","v":0}]
[]
[null,"IMPOSTO APURADO APÓS MÍNIMO DE EXISTÊNCIA",null,null,null,null,{"$f":"G65-G75","v":0},0]
[null,"TAXA EFETIVA",null,null,null,null,{"$f":"IFERROR(G77/G20,0)","v":0},{"$f":"IFERROR(H77/H20,0)","v":0},null,null,"SMN 2021","SMN 2022"]
[null,null,null,null,null,null,null,null,null,null,{"$f":"665*14","v":9310},{"$f":"705*14","v":9870}]
[null,"RENDIMENTO LÍQUIDO APÓS MÍNIMO DE EXISTÊNCIA",null,null,null,null,{"$f":"G20-G77","v":0},{"$f":"H20-H77","v":0}]
[null,"DIFERENÇA RENDIMENTO LÍQUIDO",null,null,null,null,null,{"$f":"H80-G80","v":0},null,null,"IAS 2021","IAS 2022"]
[null,null,null,null,null,null,null,null,null,null,438.81,443.2,"Minímo de existência de 2021: adicionados 200 Euros, via OE2022."]
[]
[null,null,null,null,null,"DEDUÇÕES À COLETA",null,null,null,null,"RENDIMENTO",null,"Sujeito Passivo A","Sujeito Passivo B"]
[]
[null,null,{"$f":"'Simular IRS 2022'!F8","v":0},null,null,"Despesas de saúde",null,{"$f":"'Simular IRS 2022'!G37","v":0},null,null,"RENDIMENTO DO TRABALHO",null,{"$f":"'Simular IRS 2022'!G27","v":0},{"$f":"'Simular IRS 2022'!L27","v":0}]
[null,"Estado Civil: Solteiro (1), Casado (2)",{"$f":"IF(C86=\"Casado / Unido de facto\",2,1)","v":1},null,null,"Despesas de educação",null,{"$f":"'Simular IRS 2022'!G39","v":0}]
[null,"≤3",{"$f":"'Simular IRS 2022'!F12","v":0},null,null,"Encargos com imóveis - juros",null,{"$f":"'Simular IRS 2022'!G44","v":0},null,null,"PENSÕES VELHICE",null,{"$f":"'Simular IRS 2022'!G31","v":0},{"$f":"'Simular IRS 2022'!L31","v":0}]
[null,">3e ≤6",{"$f":"'Simular IRS 2022'!F14","v":0},null,null,"Rendas",null,{"$f":"'Simular IRS 2022'!G46","v":0}]
[null,">6",{"$f":"'Simular IRS 2022'!F16","v":0},null,null,"Pensão de alimentos",null,{"$f":"'Simular IRS 2022'!G50","v":0},null,null,null,"TOTAL",{"$f":"SUM(M86,N86,M88,N88)","v":0}]
[null,"Nº de dependentes*:",{"$f":"C88+C89+C90","v":0},null,null,"Despesas Gerais",null,{"$f":"'Simular IRS 2022'!G48","v":0}]
[null,"Nº de ascendentes",{"$f":"'Simular IRS 2022'!F18","v":0},null,null,"PPR A",null,{"$f":"'Simular IRS 2022'!G56","v":0}]
[null,null,null,null,null,"PPR B",null,{"$f":"'Simular IRS 2022'!G58","v":0}]
[null,null,null,null,null,"Donativos",null,{"$f":"'Simular IRS 2022'!G60","v":0},null,null,"Taxas IRS e limites dedução à coleta"]
[]
[null,"Ano de contrato",{"$f":"'Simular IRS 2022'!G42","v":0}]
[null,"Tipo de tributação",{"$f":"IF(C98=\"Tributação separada\",2,1)","v":1},null,null,null,null,null,null,null,2021,null,"Continente"]
[null,null,{"$f":"'Simular IRS 2022'!F10","v":0}]
[null,null,null,null,null,null,null,null,null,null,"Rendimento colectável",null,"Taxa","Parcela "]
[null,null,null,null,null,null,null,null,null,null,"(Euros)",null,"(%)","Abater"]
[null,null,null,null,null,null,null,null,null,null,"De","Até",null,"(Euros)",null,"TAXA ADICIONAL DE SOLIDARIEDADE"]
[null,null,null,null,null,null,null,null,null,null,0,7112,0.14499999999999999,0]
[null,null,"RENDIMENTO",null,null,null,null,null,null,null,{"$f":"L102","v":7112},10732,0.23,604.52,null,"Escalões",null,"Taxa","Parcela"]
[null,null,null,null,null,null,null,null,null,null,10732,20322,0.28499999999999998,1194.79,null,0,80000,0,0]
[null,null,"Trabalho Dependente - Dedução específica",null,null,null,null,null,null,null,20322,25075,0.35,2515.66,null,80000,250000,2.5000000000000001E-2,2000]
[null,null,null,null,null,null,null,2021,2022,null,25075,36967,0.37,3017.27,null,250000,9.9999999999999904E+16,0.05,8250]
[null,null,null,null,null,null,null,null,null,null,36967,80882,0.45,5974.61]
[null,null,"Sujeito Passivo A",null,"Rendimento do trabalho dependente do sujeito passivo A",null,null,{"$f":"M86","v":0},{"$f":"M86","v":0},null,80882,99999999999,0.48,8401.2099999999991]
[null,null,null,null,"Contribuições obrigatórias para a SS",null,null,{"$f":"0.11*H108","v":0},0]
[null,null,null,null,"Dedução mínima prevista para rendimentos da categoria",null,null,4104,4104,null,null,null,"Limite das deduções à colecta"]
[null,null,null,null,"Dedução aplicável",null,null,{"$f":"IF(H108>=H110,IF(H109=0,H110,IF(H109>H110,H109,H110)),H108)","v":0},0]
[]
[null,null,"Sujeito Passivo B",null,"Rendimento do trabalho dependente do sujeito passivo B",null,null,{"$f":"N86","v":0},{"$f":"N86","v":0},null,0,7112,9999999]
[null,null,null,null,"Contribuições obrigatórias para a SS",null,null,{"$f":"H113*0.11","v":0},0,null,{"$f":"L113","v":7112},80882,{"$f":"IF(C91>2,(1+(0.05*C91))*(1000+(1500*((80882-G36)/(80882-7112)))),1000+(1500*((80882-G36)/(80882-7112))))","v":2644.6116307442048}]
[null,null,null,null,"Dedução mínima prevista para rendimentos da categoria",null,null,4104,4104,null,80882,99999999999,{"$f":"IF(C91>2,(1+(0.05*C91))*1000,1000)","v":1000}]
[null,null,null,null,"Dedução aplicável",null,null,{"$f":"IF(H113>=H115,IF(H114=0,H115,IF(H114>H115,H114,H115)),H113)","v":0},0]
[]
[null,null,"TOTAL SP A+B",null,"RENDIMENTO BRUTO DA CATEGORIA",null,null,{"$f":"H108+H113","v":0},0]
[]
[null,null,"TOTAL SP A+B",null,"DEDUÇÃO ESPECÍFICA AOS REND. CATEGORIA ",null,null,{"$f":"H111+H116","v":0},0]
[]
[null,null,null,null,null,null,null,null,null,null,2022,null,"Continente"]
[null,null,"Pensões - Dedução específica"]
[null,null,null,null,null,null,null,null,null,null,"Rendimento colectável",null,"Taxa","Parcela "]
[null,null,"Sujeito Passivo A",null,"Pensões de velhice",null,null,{"$f":"M88","v":0},{"$f":"M88","v":0},null,"(Euros)",null,"(%)","Abater"]
[null,null,null,null,"Total de Pensões",null,null,{"$f":"H125","v":0},0,null,"De","Até",null,"(Euros)"]
[null,null,null,null,"Dedução mínima prevista para rendimentos da categoria",null,null,4104,4104,null,0,7116,0.14499999999999999,0]
[null,null,null,null,"Dedução aplicável",null,null,{"$f":"IF(H126<4104,H126,4104)","v":0},0,null,{"$f":"+L127+0.01","v":7116.01},10736,0.23,604.86000000000013]
[null,null,null,null,null,null,null,null,null,null,10736,15216,0.26500000000000001,980.62624000000005]
[null,null,null,null,null,null,null,null,null,null,15216,19696,0.28499999999999998,1284.9911999999995]
[null,null,"Sujeito Passivo B",null,"Pensões de velhice",null,null,{"$f":"N88","v":0},{"$f":"N88","v":0},null,19696.009999999998,25076,0.35,2565.2070399999993]
[null,null,null,null,"Total de Pensões",null,null,{"$f":"H131","v":0},0,null,25076.01,36757,0.37,3066.7947999999997]
[null,null,null,null,"Dedução mínima prevista para rendimentos da categoria",null,null,4104,4104,null,36757.01,48033,0.435,5455.8415100000002]
[null,null,null,null,"Dedução aplicável",null,null,{"$f":"IF(H132<4104,H132,4104)","v":0},0,null,{"$f":"L133","v":48033},75009,0.45,6176.5634700000019]
[null,null,null,null,null,null,null,null,null,null,{"$f":"L134","v":75009},99999999999,0.48,8426.51]
[null,null,"TOTAL SP A+B",null,"RENDIMENTO BRUTO DA CATEGORIA",null,null,{"$f":"H131+H125","v":0},0]
[null,null,null,null,null,null,null,null,null,null,null,null,"Limite das deduções à colecta"]
[null,null,"TOTAL SP A+B",null,"DEDUÇÃO ESPECÍFICA AOS REND. CATEGORIA ",null,null,{"$f":"H128+H134","v":0},0]
[]
[null,null,null,null,null,null,null,null,null,null,0,{"$f":"L127","v":7116},9999999]
[null,null,null,null,null,null,null,null,null,null,{"$f":"L140","v":7116},80000,{"$f":"IF(C91>2,(1+(0.05*C91))*(1000+(1500*((80000-H36)/(80000-7116)))),1000+(1500*((80000-H36)/(80000-7116))))","v":2646.4518961637673}]
[null,null,null,null,null,"Número de Dependentes",null,null,null,null,80000,99999999999,{"$f":"IF(C91>2,(1+(0.05*C91))*1000,1000)","v":1000}]
[null,null,null,null,null,"Idade ≤ 3 anos a 31/12",null,{"$f":"C88","v":0}]
[null,null,null,null,null,"Idade >3 anos e ≤ 6 anos a 31/12",null,{"$f":"C89","v":0}]
[null,null,null,null,null,"Idade > 6 anos a 31/12",null,{"$f":"C90","v":0}]
[null,null,null,null,null,"Total",null,{"$f":"H143+H144+H145","v":0}]
[null,null,null,null,null,"Número de Ascendentes"]
[null,null,null,null,null,"Ascendentes",null,{"$f":"+C92","v":0}]
[]
[]
[]
[null,null,null,null,null,null,2021,2022]
[]
[null,null,null,null,null,"Dependentes com 3 anos ou menos (sem maj)",726,726]
[null,null,null,null,null,"Dependentes com 3 anos ou menos (com maj)",900,900]
[null,null,null,null,null,"Dependentes entre 4 e 6 anos (com maj)",600,750]
[null,null,null,null,null,"Dependentes com mais de 6 anos",600,600]
[null,null,null,null,null,"Ascendentes (mais do que 1)",525,525]
[null,null,null,null,null,"Ascendentes (apenas 1)",635,635]
[]
[null,null,null,null,null,null,2021,2022]
[null,null,null,null,null,"Dedução dependentes",{"$f":"IF(AND(C87=2,C97=2,H146<2),(G154/2)*H143+(G157/2)*(H144+H145),IF(AND(C87=2,C97=2,H145>0),G157/2*H145+G156/2*H144+G155/2*H143,IF(AND(C87=2,C97=2,H144>1,H143=0),G157/2+G156/2*(H144-1),IF(AND(C87=2,C97=2,H143>1,H144=0),G154/2+G155/2*(H143-1),IF(AND(C87=2,C97=2,H143>0,H144>0),G157/2+G156/2*(H144-1)+G155/2*H143,IF(AND(C87=2,C97=1,H146<2),G154*H143+G157*(H144+H145),IF(AND(C87=2,C97=1,H145>0),G157*H145+G156*H144+G155*H143,IF(AND(C87=2,C97=1,H144>1,H143=0),G157+G156*(H144-1),IF(AND(C87=2,C97=1,H143>1,H144=0),G154+G155*(H143-1),IF(AND(C87=2,C97=1,H143>0,H144>0),G157+G156*(H144-1)+G155*H143,IF(AND(C87=1,H146<2),G154*H143+G157*(H144+H145),IF(AND(C87=1,H145>0),G157*H145+G156*H144+G155*H143,IF(AND(C87=1,H144>1,H143=0),G157+G156*(H144-1),IF(AND(C87=1,H143>1,H144=0),G154+G155*(H143-1),IF(AND(C87=1,H143>0,H144>0),G157+G156*(H144-1)+G155*H143)))))))))))))))","v":0},{"$f":"IF(AND(C87=2,C97=2,H146<2),(H154/2)*H143+(H157/2)*(H144+H145),IF(AND(C87=2,C97=2,H145>0),H157/2*H145+H156/2*H144+H155/2*H143,IF(AND(C87=2,C97=2,H144>1,H143=0),H157/2+H156/2*(H144-1),IF(AND(C87=2,C97=2,H143>1,H144=0),H154/2+H155/2*(H143-1),IF(AND(C87=2,C97=2,H143>0,H144>0),H157/2+H156/2*(H144-1)+H155/2*H143,IF(AND(C87=2,C97=1,H146<2),H154*H143+H157*(H144+H145),IF(AND(C87=2,C97=1,H145>0),H157*H145+H156*H144+H155*H143,IF(AND(C87=2,C97=1,H144>1,H143=0),H157+H156*(H144-1),IF(AND(C87=2,C97=1,H143>1,H144=0),H154+H155*(H143-1),IF(AND(C87=2,C97=1,H143>0,H144>0),H157+H156*(H144-1)+H155*H143,IF(AND(C87=1,H146<2),H154*H143+H157*(H144+H145),IF(AND(C87=1,H145>0),H157*H145+H156*H144+H155*H143,IF(AND(C87=1,H144>1,H143=0),H157+H156*(H144-1),IF(AND(C87=1,H143>1,H144=0),H154+H155*(H143-1),IF(AND(C87=1,H143>0,H144>0),H157+H156*(H144-1)+H155*H143)))))))))))))))","v":0}]
[null,null,null,null,null,"Dedução ascendentes",{"$f":"IF(C97=2,IF(C92=0,0,IF(C92=1,G159/2,(G158*C92)/2)),IF(C92=0,0,IF(C92=1,G159,(G158*C92))))","v":0},{"$f":"IF(C97=2,IF(C92=0,0,IF(C92=1,H159/2,(H158*C92)/2)),IF(C92=0,0,IF(C92=1,H159,(H158*C92))))","v":0}]
[]
[]
[null,null,null,null,null,"Rendimento colectável",null,"Limite Dedução Rendas 2021"]
[null,null,null,null,null,"(Euros)"]
[null,null,null,null,null,"De","Até"]
[null,null,null,null,null,0,7112,800]
[null,null,null,null,null,{"$f":"G169","v":7112},30000,{"$f":"502+((800-502)*((30000-G36)/(30000-F170)))","v":892.59769311429568}]
[]
[null,null,null,null,null,"Rendimento colectável",null,"Limite Dedução Juros 2021"]
[null,null,null,null,null,"(Euros)"]
[null,null,null,null,null,"De","Até"]
[null,null,null,null,null,0,7112,450]
[null,null,null,null,null,{"$f":"G175","v":7112},30000,{"$f":"296+((450-296)*((30000-G36)/(30000-F176)))","v":497.85249912617962}]
[]
[null,null,null,null,null,"Rendimento colectável",null,"Limite Dedução Rendas 2022"]
[null,null,null,null,null,"(Euros)"]
[null,null,null,null,null,"De","Até"]
[null,null,null,null,null,0,7116,800]
[null,null,null,null,null,{"$f":"G181","v":7116},30000,{"$f":"502+((800-502)*((30000-H36)/(30000-F182)))","v":892.66596748820143}]
[]
[]
[null,null,null,null,null,"Rendimento colectável",null,"Limite Dedução Juros 2022"]
[null,null,null,null,null,"(Euros)"]
[null,null,null,null,null,"De","Até"]
[null,null,null,null,null,0,7116,450]
[null,null,null,null,null,{"$f":"G188","v":7116},30000,{"$f":"296+((450-296)*((30000-H36)/(30000-F189)))","v":497.88778185631884}]

{"sheet":"Capa","index":1,"n_rows":0,"n_cols":0,"rows_kept":0,"cut":false,"hidden":false,"merged":[]}

{"sheet":"Simular IRS 2022","index":2,"n_rows":84,"n_cols":12,"rows_kept":84,"cut":false,"hidden":false,"merged":[[79,4,79,5],[80,4,80,5],[83,1,84,1],[87,1,87,12],[73,4,73,5],[74,4,74,5],[75,4,75,5],[76,4,76,5],[77,4,77,5],[77,11,78,14],[78,4,78,5],[67,4,67,5],[68,4,68,5],[69,4,69,5],[71,4,71,5],[72,4,72,5],[70,4,70,5],[51,1,60,1],[55,6,55,7],[57,6,57,7],[59,6,59,7],[64,3,64,9],[34,9,34,12],[35,1,50,1],[36,6,36,7],[49,6,49,7],[45,6,45,7],[47,6,47,7],[25,6,25,7],[26,6,26,7],[38,6,38,7],[43,6,43,7],[25,1,28,1],[29,1,31,1],[30,6,30,7],[34,6,34,7],[1,1,2,11],[6,1,15,1],[7,5,7,6],[9,5,9,6],[23,6,23,9]]}
[]
[]
[]
[]
[]
[null,"Passo 1",null,"Informação pessoal"]
[]
[null,null,null,"Estado civil"]
[]
[null,null,null,"Tributação Separada / Tributação Conjunta"]
[]
[null,null,null,"Nº de Dependentes com 3 anos ou menos"]
[]
[null,null,null,"Nº de Dependentes entre 4 e 6 anos"]
[]
[null,null,null,"Nº de Dependentes com mais de 6 anos"]
[]
[null,null,null,"Nº de Ascendentes"]
[]
[null,null,null,"Idade Sujeito Passivo A"]
[]
[null,null,null,"Idade Sujeito Passivo B"]
[]
[]
[null,"Passo 2",null,"Rendimentos"]
[null,"Categoria A",null,null,null,null,"Sujeito Passivo A",null,null,null,null,"Sujeito Passivo B"]
[null,null,null,"Rendimentos do trabalho dependente"]
[]
[]
[null,"Categoria H"]
[null,null,null,"Pensões de velhice"]
[]
[]
[]
[null,"Passo 3",null,"Deduções à coleta do IRS, incluindo benefícios fiscais"]
[null,"Deduções\nà coleta"]
[null,null,null,"Despesas de saúde e prémios de seguros de saúde"]
[]
[null,null,null,"Despesas de educação do agregado familiar"]
[]
[null,null,null,"Despesas com aquisição de imóvel para habitação própria permanente"]
[null,null,null,"Ano do contrato (preenchimento obrigatório)"]
[]
[null,null,null,"Juros"]
[]
[null,null,null,"Despesas com rendas para habitação própria permanente"]
[]
[null,null,null,"Despesas gerais (outras não referidas acima)"]
[]
[null,null,null,"Encargos com pensões de alimentos"]
[]
[]
[]
[null,null,null,"Contribuições para Planos Poupança Reforma (PPR's)"]
[]
[null,null,null,"Sujeito Passivo A"]
[]
[null,null,null,"Sujeito Passivo B"]
[]
[null,null,null,"Encargos com donativos"]
[]
[]
[]
[]
[null,null,null,{"$f":"IF('BIG SIMULATOR'!C86=\"\",\"Falta preencher dados\",\"\"&'BIG SIMULATOR'!C86&\"\"&IF('BIG SIMULATOR'!C87=1,\"\",\", \"&'BIG SIMULATOR'!C98)&\"\"&\", \"&IF('BIG SIMULATOR'!C91>1,\"\"&'BIG SIMULATOR'!C91&\" filhos\",IF('BIG SIMULATOR'!C91=1,\"\"&'BIG SIMULATOR'!C91&\" filho\",\"sem filhos\")))&\", \"&IF('BIG SIMULATOR'!C92=0,\" sem ascendentes\",IF('BIG SIMULATOR'!C92=1,\"\"&'BIG SIMULATOR'!C92&\" ascendente\",\"\"&'BIG SIMULATOR'!C92&\" ascendentes\"))","v":"0, sem filhos,  sem ascendentes"}]
[]
[]
[null,null,null,"Rendimento bruto",2021,null,2022]
[null,null,null,"Rendimento bruto",{"$f":"IFERROR(+'BIG SIMULATOR'!$M$90,0)","v":0},null,{"$f":"IFERROR(+'BIG SIMULATOR'!$M$90,0)","v":0}]
[null,null,null,"IRS antes de deduções (1)",{"$f":"'BIG SIMULATOR'!G44","v":0},null,{"$f":"'BIG SIMULATOR'!H44","v":0}]
[null,null,null,"Deduções à coleta:"]
[null,null,null,"       Deduções por dependente / ascendente",{"$f":"'BIG SIMULATOR'!G47","v":0},null,{"$f":"'BIG SIMULATOR'!H47","v":0}]
[null,null,null,"       Despesas gerais",{"$f":"'BIG SIMULATOR'!G48","v":0},null,{"$f":"+'BIG SIMULATOR'!H48","v":0}]
[null,null,null,"       Saúde / Educação / Imóveis / Pensão de alimentos",{"$f":"'BIG SIMULATOR'!G55","v":0},null,{"$f":"'BIG SIMULATOR'!H55","v":0}]
[null,null,null,"       Benefícios fiscais",{"$f":"'BIG SIMULATOR'!G58","v":0},null,{"$f":"'BIG SIMULATOR'!H58","v":0}]
[null,null,null,"Total deduções à coleta ou limite (2)",{"$f":"'BIG SIMULATOR'!G63","v":0},null,{"$f":"'BIG SIMULATOR'!H63","v":0}]
[null,null,null,"Mínimo de existência (3)",{"$f":"+'BIG SIMULATOR'!G75","v":0},null,{"$f":"+'BIG SIMULATOR'!H75","v":0}]
[null,null,null," Imposto final (1) - (2) - (3)",{"$f":"'BIG SIMULATOR'!G44-'BIG SIMULATOR'!G63-'BIG SIMULATOR'!G75","v":0},null,{"$f":"'BIG SIMULATOR'!H44-'BIG SIMULATOR'!H63-'BIG SIMULATOR'!H75","v":0}]
[null,null,null,"Rendimento líquido de IRS",{"$f":"'BIG SIMULATOR'!G80","v":0},null,{"$f":"'BIG SIMULATOR'!H80","v":0}]
[null,null,null,"Diferença de rendimento líquido face a 2021",null,null,{"$f":"'BIG SIMULATOR'!H81","v":0}]
[null,null,null,"Taxa efetiva",{"$f":"'BIG SIMULATOR'!G78","v":0},null,{"$f":"'BIG SIMULATOR'!H78","v":0}]
[]
[]
[null,null,null,"Caso o imposto final seja inferior a 25 €, não haverá lugar ao pagamento de qualquer imposto"]

{"sheet":"Informações 2022","index":3,"n_rows":77,"n_cols":7,"rows_kept":77,"cut":false,"hidden":false,"merged":[[9,2,9,6],[10,2,10,6],[11,2,11,6],[70,2,70,4],[74,2,74,4],[47,2,47,6],[49,2,49,6],[51,2,51,6],[53,2,53,6],[37,2,37,6],[39,2,39,6],[41,2,41,6],[43,2,43,6],[45,2,45,6],[31,2,31,6],[32,2,32,6],[76,2,76,4],[77,2,77,4],[55,2,55,6],[57,2,57,6],[59,2,59,6],[61,2,61,6],[63,2,63,6],[65,2,65,6],[67,2,67,4],[69,2,69,4],[71,2,71,4],[72,2,72,4],[73,2,73,4],[75,2,75,4],[68,2,68,4],[33,2,33,6],[34,2,34,6],[35,2,35,6],[30,9,30,13],[25,2,25,6],[26,2,26,6],[27,2,27,6],[28,2,28,6],[28,9,28,13],[29,2,29,6],[30,2,30,6],[20,2,20,6],[21,2,21,6],[22,2,22,6],[23,2,23,6],[29,9,29,13],[12,2,12,6],[14,2,14,6],[16,2,16,6],[18,2,18,6],[19,2,19,6],[1,3,1,6],[3,2,3,6],[5,2,5,6],[7,2,7,6],[8,2,8,6]]}
[]
[]
[]
[]
[]
[null,null,"Deduções por dependentes e ascendentes"]
[]
[null,null,"À coleta do IRS devida pelos sujeitos passivos, é dedutível:"]
[null,null,"a) € 600 por cada dependente, acrescendo:"]
[null,null,"                - 126 €, para o primeiro  dependente com idade igual ou inferior a 3 anos;"]
[null,null,"                - 300 €, para o segundo dependente e seguintes que não ultrapassem 3 anos de idade;"]
[null,null,"                - 150 €, para o segundo dependente e seguintes com idades compreendidas entre 4 e 6 anos."]
[null,null,"b) € 525 por cada ascendente (acresce € 110 se existir apenas um ascendente no agregado familiar).*"]
[]
[null,null,"* O ascendente terá que viver em comunhão de habitação com o sujeito passivo e não poderá auferir rendimento superior à pensão mínima do regime geral"]
[]
[null,null,"Deduções por despesas gerais"]
[]
[null,null,"35% do valor suportado por qualquer membro do agregado familiar:"]
[null,null,"● limite global de € 250 para cada sujeito passivo;"]
[null,null,"● a dedução opera no ano em que as faturas foram emitidas;"]
[null,null,"● para beneficiar da dedução os sujeitos passivos devem pedir ao emitente a inclusão do seu número de identificação fiscal nas faturas;"]
[null,null,"● o valor da dedução é apurado com base nas faturas comunicadas à Autoridade Tributária (AT) pelos emitentes até 25 de fevereiro do ano seguinte ao da sua emissão;"]
[null,null,"45% do valor suportado por qualquer membro do agregado familiar com o limite global de € 335, nas famílias monoparentais."]
[]
[null,null,"Dedução por despesas de saúde"]
[]
[null,null,"15% do valor suportado por qualquer membro do agregado familiar:"]
[null,null,"● limite global de € 1.000;"]
[null,null,"●  são elegíveis para dedução as faturas que titulem prestações de serviços e aquisições de bens, isentos de IVA ou tributados à taxa reduzida, nas seguintes atividades:"]
[null,null,"     - atividade de saúde humana;"]
[null,null,"     - comércio a retalho de produtos farmacêuticos, em estabelecimentos especializados;"]
[null,null,"     - comércio a retalho de produtos médicos e ortopédicos, em estabelecimentos especializados;"]
[null,null,"                        - comércio a retalho de material ótico, em estabelecimentos especializados"]
[null,null," - prémios de seguros de saúde."]
[null,null,"●  são elegíveis para dedução as faturas que titulem prestações de serviços e aquisições de bens, tributados à taxa normal de IVA, desde que devidamente justificados através de receita médica."]
[]
[null,null,"Dedução por despesas com educação"]
[]
[null,null,"30% do valor suportado por qualquer membro do agregado familiar com o limite global de € 800. Este limite pode ser aumentado em € 200, quando a diferença seja relativa a arrendamento de imóvel ou de parte de imóvel, a membros do agregado familiar que não tenham mais de 25 anos (cuja localização se situe a uma distância superior a 50 Kms da residência permanente);"]
[]
[null,null,"Majoração de 10% do valor de despesas suportadas por estudantes que frequentem estabelecimentos de ensino situados em território do interior e regiões autónomas, caso em que o limite global acima referido é elevado para € 1.000, se derivado deste tipo de despesas."]
[]
[null,null,"Dedução por encargos com imóveis"]
[]
[null,null,"15% do valor suportado por qualquer membro do agregado familiar, relativamente a rendas para fins de habitação permanente, com o limite de € 502. Este limite poderá ser superior, consoante o rendimento coletável do agregado familiar. No caso de transferência de residência permanente para um território do interior, o limite poderá ser aumentado para € 1,000, durante 3 anos;"]
[]
[null,null,"15% do valor suportado por qualquer membro do agregado familiar, relativamente a juros de dívidas, por contratos celebrados até 31 de dezembro de 2011, contraídas para aquisição, construção ou beneficiação de imóveis para fins de habitação permanente ou arrendamento, com o limite de € 296. Este limite poderá ser superior, consoante o rendimento coletável do agregado familiar."]
[]
[null,null,"Dedução por exigência de fatura"]
[]
[null,null,"15% do IVA suportado, por qualquer membro do agregado familiar que conste de faturas que titulem determinadas prestações de serviço (manutenção e reparação de veículos automóveis e motociclos, alojamento, restauração e similares, atividades de salões de cabeleireiro e institutos de beleza, atividades veterinárias e atividades de clubes desportivos e ginásios), dedução de 100% do IVA suportado, por qualquer membro do agregado familiar com aquisição de passes mensais para utilização de transportes públicos e dedução de 35% do IVA suportado, por qualquer membro do agregado familiar com aquisição de medicamentos para uso veterinário."]
[]
[null,null,"Despesas com pensões de alimentos"]
[]
[null,null,"20% dos encargos com pensões de alimentos, desde que resultantes de sentença judicial ou acordo judicialmente homologado."]
[]
[null,null,"Encargos com donativos"]
[]
[null,null,"25% dos donativos destinados a igrejas, instituições religiosas, instituições de caridade, museus, escolas, bibliotecas e outras entidades de cariz social, cultural ou científico reconhecidas pelo Estado, até ao limite de 15% da coleta."]
[]
[null,null,"Contribuições para Planos Poupança Reforma (PPR)"]
[]
[null,null,"20% do valor aplicado com o limite de € 300, € 350 ou € 400 consoante a idade do sujeito passivo."]
[]
[null,null,"Taxas IRS (para 2022)"]
[]
[null,null,"Rendimento Coletável (€)",null,null,"Taxas","Parcela a abater (€)"]
[null,null,"Até 7.116",null,null,"14,5%",0]
[null,null,"De mais de 7.116 até 10.736",null,null,0.23,604.86]
[null,null,"De mais de 10.736 até 15.216",null,null,0.26500000000000001,980.63]
[null,null,"De mais de 15.216 até 19.696",null,null,"28,5%",1284.99]
[null,null,"De mais de 19.696 até 25.076",null,null,0.35,2565.21]
[null,null,"De mais de 25.076 até 36.757",null,null,0.37,3066.79]
[null,null,"De mais de 36.757 até 48.033",null,null,0.435,5455.84]
[null,null,"De mais de 48.033 até 75.009",null,null,0.45,6176.56]
[null,null,"Superior a 75.009",null,null,0.48,8426.51]

{"sheet":"Disclaimer","index":4,"n_rows":49,"n_cols":3,"rows_kept":49,"cut":false,"hidden":false,"merged":[]}
[]
[]
[]
[]
[]
[]
[]
[]
[]
[null,null,"Simulador não prevê as seguintes situações"]
[]
[null,null,"- Residentes fiscais nos Açores e na Madeira;                                                                                                                                                                                                                                                                         "]
[null,null,"- Sujeitos passivos deficientes;"]
[null,null,"- Agregados Familiares em que os dependentes ou os ascendentes aufiram rendimentos;      "]
[null,null,"- Situações de guarda conjunta de dependentes."]
[]
[null,null,"Pressupostos da estimativa de imposto"]
[]
[null,null,"- As simulações de imposto encontram-se limitadas às categorias de rendimentos e despesas incluídas no simulador;"]
[null,null,"- As estimativas disponibilizadas são meramente ilustrativas e baseadas na interpretação da PwC da Proposta de Lei n.º 4/XV/1.ª, relativamente ao Orçamento de Estado para 2022;"]
[null,null,"- As simulações de imposto não consideram o mínimo de existência (i.e. a não aplicação das taxas progressivas) para agregados familiares com três ou mais dependentes com rendimentos baixos."]
[]
[null,null,"Rendimentos do trabalho dependente"]
[]
[null,null,"- No cálculo da dedução específica, considera-se 11% do valor bruto do rendimento, respeitante a contribuições para a segurança social, ou 4.104 € se superior."]
[]
[null,null,"Pensões"]
[]
[null,null,"- No cálculo da dedução específica das pensões, considera-se que o valor de contribuições obrigatórias para regimes de proteção social e para subsistemas legais de saúde é inferior a € 4.104."]
[]
[null,null,"Deduções à coleta"]
[]
[null,null,"Despesas de educação"]
[null,null,"- O simulador não contempla as situações de despesas relativas a arrendamento de imóvel de estudantes que frequentem um estabelecimento de ensino a uma distância superior a 50 km da sua residência permanente nem a majoração dos encargos incorridos por estudantes que frequentem estabelecimentos de ensino situados no interior e nas regiões autónomas."]
[]
[null,null,"Encargos com imóveis"]
[null,null,"- O simulador não contempla a majoração do limite de dedução por encargos com imóveis, referente à transferência de residência permanente para um território do interior."]
[]
[null,null,"Encargos com donativos"]
[null,null,"- Assume-se por defeito uma majoração de 130%, sem qualquer limitação, dos encargos com donativos. No entanto, a majoração destes encargos dependerá da natureza da entidade beneficiária do mesmo."]
[]
[null,null,"Exigência de fatura"]
[null,null,"- O simulador não contempla a dedução referente à exigência de fatura."]
[]
[null,null,"Tributação separada"]
[null,null,"- No valor das despesas referentes a educação, saúde e encargos com imóveis, deverá colocar a totalidade das despesas incorridas pelo seu agregado familiar;"]
[null,null,"- No valor das despesas gerais e familiares, deverá colocar a totalidade das despesas incorridas por si e 50% das despesas incorridas pelos seus dependentes;"]
[null,null,"- No valor dos donativos, deverá colocar a totalidade dos donativos efetuados por si e 50% do valor dos donativos efetuados pelos seus dependentes;"]
[null,null,"- No valor das pensões de alimentos, deverá colocar unicamente o valor de pensões de alimentos pagas por si."]

{"sheet":"Ajuda","index":5,"n_rows":0,"n_cols":0,"rows_kept":0,"cut":false,"hidden":false,"merged":[]}